bitfinex/quotes_BTCUSD_20250408
["timestamp","ask_amount","ask_price","bid_price","bid_amount"]
[1744133727093,0.013001,76913.0,76903.0,0.0009999]
[1744133727290,0.34,76913.0,76908.0,0.26005]
[1744133727478,0.01454085,76919.0,76908.0,0.26005]
[1744133727684,0.34,76917.0,76904.0,0.260064]
[1744133727862,0.34,76915.0,76905.0,0.273064]
[1744133728133,0.34,76914.0,76913.0,0.273034]
[1744133728265,0.00042082,76920.0,76919.0,0.260013]
[1744133728650,0.01342082,76920.0,76904.0,0.013003]
[1744133728815,0.00042082,76920.0,76919.0,0.273013]
[1744133729165,0.00042082,76920.0,76919.0,0.39927164]
[1744133729379,8.2e-07,76920.0,76919.0,1.43071164]
[1744133729625,0.0001674,76937.0,76936.0,0.272953]
[1744133729857,0.00098154,76961.0,76948.0,0.27291]
[1744133730281,0.00052612,76949.0,76948.0,0.39916864]
[1744133730884,0.00052612,76949.0,76948.0,0.40917437]
[1744133731103,0.1,76966.0,76960.0,0.34]
[1744133731303,0.1,76966.0,76965.0,0.61285]
[1744133731528,0.1,76966.0,76965.0,0.295771]
[1744133731730,0.1,76966.0,76965.0,0.42202964]
[1744133731937,0.0004,77009.0,76978.0,0.272804]
[1744133732170,0.0005261,76979.0,76978.0,0.26012447]
[1744133732375,0.0001261,76991.0,76990.0,0.012988]
[1744133732595,0.012988,76994.0,76990.0,0.022921]
[1744133732937,0.012988,76992.0,76991.0,0.022921]
[1744133733144,0.01299,76979.0,76974.0,0.12625864]
[1744133733354,0.352989,76983.0,76978.0,0.12625864]
[1744133733554,0.352989,76983.0,76969.0,0.0009904]
[1744133733555,0.259811,76979.0,76971.0,0.0001261]
[1744133733755,0.34,76983.0,76971.0,0.0001261]
[1744133733756,0.34,76983.0,76979.0,0.01299]
[1744133733933,0.000167,76991.0,76980.0,0.01299]
[1744133734167,0.000167,76991.0,76979.0,0.01299]
[1744133734371,0.259848,76969.0,76952.0,0.0476]
[1744133734668,0.012991,76972.0,76965.0,0.12625864]
[1744133734867,0.259841,76970.0,76969.0,0.0067]
[1744133735074,0.02564116,77000.0,76990.0,0.012988]
[1744133735228,0.02564116,77000.0,76981.0,0.46238033]
[1744133735429,0.12625864,76990.0,76988.0,0.012989]
[1744133735656,0.02564116,77000.0,76990.0,0.012988]
[1744133735857,5e-08,76991.0,76990.0,0.012988]
[1744133736067,0.0004,77039.0,77033.0,0.012981]
[1744133736319,0.0004,77039.0,77024.0,0.012982]
[1744133736320,0.12781996,77034.0,77031.0,0.46238033]
[1744133736526,0.00156132,77034.0,77022.0,0.272649]
[1744133736730,0.01454232,77034.0,77027.0,0.00992694]
[1744133736947,0.012982,77026.0,77014.0,0.46238033]
[1744133737154,0.012982,77025.0,77015.0,0.12625864]
[1744133737372,0.012984,77017.0,77016.0,0.12625864]
[1744133737545,0.012986,77006.0,76992.0,0.012988]
[1744133737749,0.012986,77001.0,76986.0,0.272773]
[1744133737949,0.012986,77001.0,76989.0,0.13924664]
[1744133738150,0.012987,76999.0,76987.0,0.01138286]
[1744133738497,0.259778,76989.0,76987.0,0.01138286]
[1744133738670,0.012989,76988.0,76987.0,0.01138286]
[1744133738871,0.34,77004.0,76988.0,0.25978]
[1744133739100,0.34,77002.0,76997.0,0.259748]
[1744133739308,0.46625864,77002.0,76992.0,0.272755]
[1744133739512,0.012987,77000.0,76987.0,0.006]
[1744133739712,0.012988,76993.0,76987.0,0.006]
[1744133739962,0.34,76995.0,76987.0,0.006]
[1744133740196,0.34,76995.0,76977.0,0.259817]
[1744133740197,0.00104922,76992.0,76985.0,0.012989]
[1744133740370,0.0499993,77040.0,76973.0,0.34]
[1744133740371,0.001,77002.0,76973.0,0.34]
[1744133740612,0.12625864,77001.0,76980.0,0.01299]
[1744133740814,0.012988,76994.0,76977.0,0.259817]
[1744133741018,0.7431771,76990.0,76982.0,0.259799]
[1744133741229,0.352988,76992.0,76978.0,0.259813]
[1744133741440,0.01459579,76989.0,76973.0,0.25983]
[1744133741645,0.01459579,76989.0,76971.0,0.012991]
[1744133741646,0.012993,76962.0,76961.0,0.0004]
[1744133742051,0.00262418,76962.0,76961.0,0.0004]
[1744133742253,0.01561718,76962.0,76961.0,0.0004]
[1744133742456,0.012993,76962.0,76961.0,0.0004]
[1744133742664,0.012997,76936.0,76931.0,0.0004]
[1744133742871,0.49851791,76962.0,76961.0,0.009]
[1744133743075,0.48025164,76962.0,76961.0,0.009]
[1744133743278,0.012996,76946.0,76933.0,0.012998]
[1744133743480,0.012995,76951.0,76938.0,0.012997]
[1744133743685,0.272962,76934.0,76931.0,0.0004]
[1744133743900,0.272971,76931.0,76930.0,0.04286588]
[1744133744101,0.013,76920.0,76901.0,0.0004]
[1744133744250,0.259983,76928.0,76916.0,0.013001]
[1744133744454,0.259983,76928.0,76907.0,0.260052]
[1744133744455,0.260044,76910.0,76902.0,0.08073694]
[1744133744655,0.013001,76913.0,76898.0,0.013004]
[1744133744898,0.013003,76902.0,76901.0,0.00082066]
[1744133745117,0.013003,76905.0,76901.0,0.00082066]
[1744133745284,0.273068,76905.0,76901.0,0.00082066]
[1744133745448,0.013003,76904.0,76901.0,0.00082066]
[1744133745648,0.013003,76902.0,76901.0,0.00082066]
[1744133746094,0.001,76902.0,76901.0,0.00782066]
[1744133746472,0.260024,76916.0,76903.0,0.013003]
[1744133746696,0.013003,76903.0,76901.0,0.00082066]
[1744133746903,0.013,76919.0,76906.0,0.273059]
[1744133747100,0.013003,76905.0,76901.0,0.02067179]
[1744133747331,0.013003,76902.0,76901.0,0.02067179]
[1744133747713,0.47926164,76902.0,76901.0,0.02067179]
[1744133747897,0.60551709,76902.0,76892.0,7.9e-07]
[1744133748114,0.613106,76893.0,76892.0,7.9e-07]
[1744133748318,0.73936464,76893.0,76892.0,8.4e-07]
[1744133748718,0.75390549,76893.0,76892.0,8.4e-07]
[1744133748882,0.61318,76872.0,76871.0,0.0004]
[1744133749091,0.73943864,76872.0,76871.0,0.00052612]
[1744133749753,0.86569409,76872.0,76871.0,0.00052612]
[1744133749955,0.75397949,76872.0,76871.0,1.2e-07]
[1744133750106,0.75397949,76872.0,76871.0,0.00500012]
[1744133750315,0.73943864,76872.0,76871.0,0.00500012]
[1744133750694,0.73943864,76872.0,76871.0,1.2e-07]
[1744133750695,0.75397949,76872.0,76871.0,1.2e-07]
[1744133750912,0.613234,76857.0,76856.0,0.000333]
[1744133751145,0.73949264,76857.0,76856.0,0.00045986]
[1744133751566,0.613287,76842.0,76841.0,1e-06]
[1744133751772,0.75408649,76842.0,76841.0,1e-06]
[1744133751968,0.73954564,76842.0,76841.0,1e-06]
[1744133752402,0.27324,76856.0,76841.0,1e-06]
[1744133752601,0.013013,76845.0,76841.0,1e-06]
[1744133752831,0.12625864,76845.0,76841.0,1e-06]
[1744133753037,0.34,76851.0,76842.0,0.013013]
[1744133753236,0.34,76849.0,76844.0,0.013013]
[1744133753439,0.26034881,76857.0,76845.0,0.013013]
[1744133753440,0.00012581,76857.0,76845.0,0.013013]
[1744133753638,0.12638445,76857.0,76849.0,0.013012]
[1744133753920,0.12638445,76857.0,76842.0,0.013013]
[1744133753921,0.013013,76845.0,76830.0,0.013015]
[1744133754280,0.613287,76842.0,76824.0,0.000333]
[1744133754578,0.76966058,76842.0,76824.0,0.000333]
[1744133754777,0.49637358,76842.0,76828.0,0.013016]
[1744133755010,0.37011494,76842.0,76841.0,0.273291]
[1744133755211,0.03011494,76842.0,76841.0,0.273291]
[1744133755413,0.02338302,76842.0,76841.0,0.273291]
[1744133755621,0.00012581,76857.0,76856.0,0.013011]
[1744133756252,0.00012581,76857.0,76852.0,0.013012]
[1744133756451,0.00012581,76857.0,76845.0,0.46238033]
[1744133756652,0.00012581,76857.0,76851.0,0.260243]
[1744133756957,0.00012581,76857.0,76852.0,0.013012]
[1744133757106,0.00012581,76857.0,76856.0,0.013011]
[1744133757312,0.00012581,76857.0,76856.0,0.15381049]
[1744133757691,0.00112581,76857.0,76856.0,0.15881049]
[1744133758122,0.00112581,76857.0,76856.0,0.49881049]
[1744133758284,0.59113658,76930.0,76904.0,0.013003]
[1744133758478,0.260067,76904.0,76892.0,0.013005]
[1744133758704,0.260067,76904.0,76895.0,0.273096]
[1744133758916,0.00369295,76903.0,76902.0,0.013003]
[1744133759229,0.013001,76916.0,76907.0,0.013002]
[1744133759428,0.013001,76916.0,76880.0,0.34]
[1744133759429,0.013005,76893.0,76884.0,0.01454085]
[1744133759629,0.013005,76889.0,76880.0,0.01454085]
[1744133759829,0.273096,76896.0,76886.0,0.273129]
[1744133759994,0.273096,76896.0,76881.0,0.12625864]
[1744133759995,0.013005,76892.0,76881.0,0.013007]
[1744133760190,0.00394733,76895.0,76889.0,0.013005]
[1744133760436,0.013002,76908.0,76899.0,0.013004]
[1744133760609,0.013003,76900.0,76887.0,0.013006]
[1744133760810,0.0004,76919.0,76906.0,0.013002]
[1744133760811,0.0001263,76915.0,76906.0,0.013002]
[1744133761018,0.0001263,76915.0,76914.0,0.013001]
[1744133761247,0.013002,76911.0,76906.0,0.00959291]
[1744133761465,0.013002,76907.0,76906.0,0.00959291]
[1744133761681,0.013004,76899.0,76889.0,0.260115]
[1744133761889,0.001,76900.0,76888.0,0.013005]
[1744133762111,0.001,76900.0,76896.0,0.26009]
[1744133762333,0.013005,76888.0,76887.0,0.001]
[1744133762522,0.013006,76885.0,76875.0,0.273167]
[1744133762692,0.013003,76904.0,76890.0,0.013005]
[1744133762900,0.05349903,76905.0,76813.0,0.048]
[1744133763099,0.05349903,76905.0,76840.0,0.260274]
[1744133763100,0.00499903,76842.0,76840.0,0.260274]
[1744133763327,0.00499903,76871.0,76864.0,0.260197]
[1744133763530,0.00499903,76883.0,76872.0,0.013008]
[1744133763826,0.0233652,76904.0,76858.0,0.26]
[1744133763827,0.00499903,76898.0,76886.0,0.013006]
[1744133764035,0.00499903,76898.0,76880.0,0.013007]
[1744133764036,0.260104,76893.0,76880.0,0.013007]
[1744133764201,0.26008,76900.0,76886.0,0.013006]
[1744133764370,0.27912203,76888.0,76887.0,0.006]
[1744133764737,0.01301,76859.0,76858.0,0.52]
[1744133764864,0.00499903,76866.0,76854.0,0.013011]
[1744133765083,0.13125767,76866.0,76858.0,0.013011]
[1744133765397,0.260212,76861.0,76854.0,0.00954896]
[1744133765600,0.260212,76861.0,76839.0,0.52]
[1744133765601,0.00499903,76852.0,76839.0,0.52]
[1744133765808,0.12625864,76860.0,76832.0,0.52]
[1744133765809,0.273287,76842.0,76832.0,0.52]
[1744133766001,0.12625864,76851.0,76832.0,0.52]
[1744133766002,0.260266,76845.0,76838.0,0.2733]
[1744133766229,0.00596764,76842.0,76841.0,0.013014]
[1744133766382,0.00499903,76855.0,76848.0,0.013012]
[1744133766598,0.26024,76853.0,76848.0,0.00012581]
[1744133766801,0.00499903,76866.0,76862.0,0.260204]
[1744133767024,0.12625864,76866.0,76865.0,0.273205]
[1744133767275,0.00499903,76872.0,76865.0,0.013009]
[1744133767458,0.01800903,76860.0,76847.0,0.013012]
[1744133767668,0.01800903,76860.0,76833.0,0.52]
[1744133767669,0.001,76866.0,76865.0,0.013009]
[1744133767872,0.260196,76865.0,76857.0,0.26022]
[1744133768059,0.00599903,76866.0,76857.0,0.26022]
[1744133768060,0.001,76866.0,76860.0,0.01301]
[1744133768197,0.00499903,76874.0,76864.0,0.013009]
[1744133768404,0.00499903,76875.0,76864.0,0.273205]
[1744133768622,0.001,76872.0,76871.0,0.273184]
[1744133768798,0.001,76872.0,76871.0,0.28772485]
[1744133769003,0.013004,76897.0,76871.0,0.28772485]
[1744133769004,0.00499903,76903.0,76898.0,0.260084]
[1744133769225,0.013001,76912.0,76908.0,0.273051]
[1744133769226,0.00499903,76912.0,76908.0,0.273051]
[1744133769450,0.273089,76898.0,76887.0,0.013006]
[1744133769655,0.260165,76875.0,76859.0,0.260216]
[1744133769848,0.013009,76866.0,76846.0,0.52]
[1744133770087,0.13086817,76874.0,76867.0,0.013009]
[1744133770294,0.12625864,76874.0,76866.0,0.013009]
[1744133770509,0.00527104,76873.0,76870.0,0.260176]
[1744133770685,0.00527104,76873.0,76869.0,0.260181]
[1744133770885,0.013008,76875.0,76861.0,0.27474985]
[1744133771172,0.00499903,76873.0,76858.0,0.013011]
[1744133771378,0.00499903,76869.0,76855.0,0.013011]
[1744133771581,0.00499903,76854.0,76840.0,1.03056]
[1744133771731,0.00499903,76843.0,76839.0,0.2606156]
[1744133771933,0.13125767,76842.0,76839.0,0.0003336]
[1744133772133,0.40454467,76842.0,76839.0,0.0003336]
[1744133772295,0.48042172,76842.0,76839.0,0.0003336]
[1744133772496,0.27829403,76840.0,76839.0,6e-07]
[1744133772701,0.40455267,76840.0,76839.0,6e-07]
[1744133772897,0.7525594,76840.0,76839.0,6e-07]
[1744133773144,0.47426537,76840.0,76839.0,6e-07]
[1744133773316,0.47426537,76840.0,76839.0,0.00012641]
[1744133773317,0.4922784,76840.0,76839.0,0.00012641]
[1744133773518,0.4792644,76840.0,76839.0,0.00012641]
[1744133773956,0.1392644,76840.0,76839.0,0.00012641]
[1744133774415,0.00800673,76840.0,76839.0,0.02768126]
[1744133774616,0.00499903,76852.0,76844.0,0.013013]
[1744133774968,0.34499903,76852.0,76846.0,0.260258]
[1744133775201,0.34499903,76852.0,76839.0,0.01666726]
[1744133775202,0.013012,76848.0,76839.0,0.01666726]
[1744133775395,0.00499903,76846.0,76840.0,0.013014]
[1744133775535,0.00499903,76846.0,76845.0,0.013013]
[1744133775733,0.01168013,76846.0,76845.0,0.013013]
[1744133775942,0.00499903,76864.0,76863.0,0.2602]
[1744133776265,0.26518703,76868.0,76862.0,0.260206]
[1744133776441,0.12625864,76867.0,76860.0,0.273221]
[1744133776725,0.00627261,76867.0,76866.0,0.273202]
[1744133776837,0.00627261,76867.0,76864.0,0.260197]
[1744133777039,0.00499903,76870.0,76869.0,0.273191]
[1744133777248,0.273216,76862.0,76861.0,0.01207947]
[1744133777448,0.74447367,76862.0,76861.0,0.01207947]
[1744133777689,0.273277,76845.0,76844.0,0.001]
[1744133777889,0.74453467,76845.0,76844.0,0.001]
[1744133778091,0.75158935,76845.0,76844.0,0.00012581]
[1744133779049,0.49132535,76845.0,76844.0,0.00012581]
[1744133779710,0.47831235,76845.0,76844.0,0.00012581]
[1744133779914,0.13831235,76845.0,76844.0,0.00012581]
[1744133780174,0.00705468,76845.0,76844.0,0.01313881]
[1744133780373,0.00499903,76847.0,76846.0,0.013013]
[1744133780607,0.35801203,76845.0,76844.0,0.00012581]
[1744133780817,0.58735184,76845.0,76844.0,8.1e-07]
[1744133780957,0.49208593,76845.0,76844.0,8.1e-07]
[1744133781378,0.49208593,76845.0,76825.0,0.0003336]
[1744133781379,0.61829403,76840.0,76825.0,0.0003336]
[1744133781572,0.61834303,76826.0,76825.0,0.0003336]
[1744133781776,0.75241693,76826.0,76825.0,0.0003336]
[1744133782634,0.87867238,76826.0,76825.0,0.0003336]
[1744133782833,0.87867238,76826.0,76815.0,0.0003334]
[1744133782834,0.35801503,76825.0,76824.0,6e-07]
[1744133783010,0.01801703,76816.0,76815.0,0.0003334]
[1744133783215,0.61838603,76814.0,76813.0,2e-07]
[1744133783420,0.74464467,76814.0,76813.0,2e-07]
[1744133783777,0.61840403,76809.0,76808.0,8e-07]
[1744133783907,0.78996267,76809.0,76808.0,8e-07]
[1744133784308,0.00499903,76794.0,76793.0,0.0003334]
[1744133784733,0.14427867,76794.0,76793.0,0.0003334]
[1744133784937,0.01281429,76794.0,76793.0,0.0003334]
[1744133785336,0.36583529,76794.0,76793.0,0.0003334]
[1744133785556,0.49209393,76794.0,76793.0,0.0003334]
[1744133785764,0.00781526,76794.0,76793.0,0.2737954]
[1744133785959,0.013018,76813.0,76796.0,0.260427]
[1744133785960,0.00499903,76805.0,76796.0,0.260427]
[1744133786159,0.00499903,76805.0,76793.0,0.27531425]
[1744133786160,0.00499903,76798.0,76794.0,0.260437]
[1744133786332,0.00756604,76797.0,76794.0,0.013021]
[1744133786560,0.01802003,76796.0,76793.0,0.0053334]
[1744133786792,0.00499903,76796.0,76794.0,0.260433]
[1744133786963,0.34,76803.0,76794.0,0.260433]
[1744133786964,0.00499903,76800.0,76794.0,0.013021]
[1744133787138,0.34,76803.0,76802.0,0.01302]
[1744133787318,0.00499903,76800.0,76795.0,0.26043]
[1744133787520,0.00746368,76799.0,76795.0,0.26043]
[1744133787725,0.27845703,76794.0,76793.0,0.0053334]
[1744133787967,0.74627009,76794.0,76793.0,0.0003334]
[1744133788171,0.74627009,76794.0,76793.0,4e-07]
[1744133788481,0.2735,76782.0,76781.0,2e-07]
[1744133788685,0.39975864,76782.0,76781.0,2e-07]
[1744133788912,0.40728007,76782.0,76781.0,2e-07]
[1744133789218,0.40728007,76782.0,76767.0,5.0133594]
[1744133789219,0.013026,76768.0,76767.0,5.0003334]
[1744133789351,0.39980964,76768.0,76767.0,3.9530214]
[1744133789554,0.43018353,76768.0,76767.0,3.9530214]
[1744133789957,0.43030945,76768.0,76767.0,3.9530214]
[1744133790184,0.38474297,76768.0,76767.0,3.9530214]
[1744133790384,0.72474297,76768.0,76767.0,3.9530214]
[1744133790604,0.70124032,76768.0,76767.0,3.9530214]
[1744133792040,0.70424032,76768.0,76767.0,3.9530214]
[1744133792494,0.7373046,76768.0,76767.0,3.0976924]
[1744133792663,0.70424032,76768.0,76767.0,3.0976924]
[1744133792862,0.70424032,76768.0,76767.0,2.06987919]
[1744133793084,0.6636103,76751.0,76750.0,4e-07]
[1744133793264,0.273771,76706.0,76705.0,0.0489]
[1744133793468,0.013036,76705.0,76689.0,0.0459]
[1744133793834,0.35972932,76705.0,76689.0,0.0459]
[1744133794031,0.48598796,76705.0,76690.0,0.0001667]
[1744133794481,0.47295196,76705.0,76690.0,0.0001667]
[1744133794652,0.47295196,76705.0,76690.0,0.00277448]
[1744133794853,0.47307772,76705.0,76690.0,0.00277448]
[1744133795091,0.00681908,76705.0,76690.0,0.00277448]
[1744133795341,0.13307772,76705.0,76704.0,0.0013334]
[1744133795652,0.13307772,76705.0,76704.0,0.0003334]
[1744133795883,0.48611372,76705.0,76704.0,0.0003334]
[1744133796595,0.47307772,76705.0,76704.0,0.0003334]
[1744133797228,0.00681908,76705.0,76704.0,0.0003334]
[1744133797648,0.01281908,76705.0,76704.0,0.0013334]
[1744133798183,0.00012576,76705.0,76704.0,0.0133704]
[1744133798405,0.00012576,76705.0,76704.0,0.15677674]
[1744133798603,0.00012576,76705.0,76704.0,0.02791125]
[1744133798803,0.00012576,76705.0,76704.0,0.0003334]
[1744133799565,0.00012576,76705.0,76704.0,0.03051827]
[1744133799718,0.00112576,76705.0,76704.0,0.16177691]
[1744133799919,0.00112576,76705.0,76704.0,0.03551827]
[1744133800343,0.00112576,76705.0,76704.0,0.01987425]
[1744133800549,0.00112576,76705.0,76704.0,0.29365325]
[1744133800747,0.00112576,76705.0,76704.0,0.0003334]
[1744133800949,0.1394204,76705.0,76704.0,0.0003334]
[1744133801150,0.1404204,76705.0,76704.0,0.0073334]
[1744133801393,0.4804204,76705.0,76704.0,0.0073334]
[1744133801590,0.4804204,76705.0,76704.0,0.0003334]
[1744133801814,0.4794204,76705.0,76704.0,0.0003334]
[1744133802153,0.4804204,76705.0,76704.0,0.0083334]
[1744133802352,0.56954843,76705.0,76704.0,0.0083334]
[1744133802489,0.56854843,76705.0,76704.0,0.0003334]
[1744133802884,0.4814204,76705.0,76704.0,0.0003334]
[1744133803539,0.4683844,76705.0,76704.0,0.0003334]
[1744133804219,0.4683844,76705.0,76704.0,0.0133704]
[1744133804220,0.00012576,76705.0,76704.0,0.0133704]
[1744133804461,0.00012576,76705.0,76704.0,0.0013334]
[1744133804680,0.00812576,76705.0,76704.0,0.02891125]
[1744133805110,0.0012735,76705.0,76704.0,0.20557659]
[1744133805601,0.01303,76741.0,76704.0,0.20557659]
[1744133805602,0.260618,76741.0,76724.0,0.260673]
[1744133805831,0.12625864,76740.0,76727.0,0.013033]
[1744133806071,0.00012623,76741.0,76740.0,0.273651]
[1744133806282,0.260649,76732.0,76722.0,0.01454085]
[1744133806497,0.013031,76737.0,76721.0,0.01288602]
[1744133806498,0.12625864,76731.0,76721.0,0.01288602]
[1744133806761,0.260665,76727.0,76721.0,0.01288602]
[1744133806988,0.34,76723.0,76711.0,0.01454085]
[1744133807217,0.34,76721.0,76706.0,0.260734]
[1744133807450,0.34,76719.0,76713.0,0.260711]
[1744133807685,0.34,76719.0,76710.0,0.013036]
[1744133807686,0.34,76719.0,76718.0,0.273729]
[1744133807953,0.00012623,76741.0,76727.0,0.260662]
[1744133808167,0.600644,76733.0,76714.0,0.01454085]
[1744133808418,0.34,76731.0,76719.0,0.26069]
[1744133808664,0.34,76729.0,76728.0,0.260661]
[1744133808878,0.46625864,76729.0,76725.0,0.26067]
[1744133809113,0.34,76727.0,76711.0,0.013035]
[1744133809325,0.34,76727.0,76687.0,0.34]
[1744133809326,0.46625864,76727.0,76726.0,0.2737]
[1744133809598,0.00112623,76741.0,76726.0,0.2737]
[1744133809839,0.34,76739.0,76734.0,0.013032]
[1744133810059,0.12625864,76738.0,76736.0,0.013031]
[1744133810285,0.00012623,76741.0,76740.0,0.273651]
[1744133810769,0.12638487,76741.0,76728.0,0.002]
[1744133810990,0.34,76739.0,76728.0,0.002]
[1744133811223,0.34,76737.0,76727.0,0.273696]
[1744133811473,0.34,76735.0,76721.0,0.013034]
[1744133811721,0.34,76733.0,76722.0,0.260681]
[1744133811937,0.34,76731.0,76729.0,0.013032]
[1744133812194,0.12625864,76733.0,76731.0,0.273682]
[1744133812661,0.00012623,76741.0,76729.0,0.013032]
[1744133812662,0.00012623,76741.0,76729.0,0.01454085]
[1744133812932,0.00012623,76741.0,76738.0,0.01454085]
[1744133813120,0.34,76733.0,76728.0,0.005]
[1744133813306,0.34,76731.0,76728.0,0.005]
[1744133813508,0.260661,76728.0,76711.0,0.013035]
[1744133813680,0.34,76726.0,76709.0,0.02757685]
[1744133813884,0.34,76724.0,76713.0,0.273744]
[1744133814084,0.34,76722.0,76710.0,0.26072]
[1744133814290,0.34,76720.0,76707.0,0.01454085]
[1744133814494,0.12625864,76721.0,76706.0,0.260734]
[1744133814495,0.34,76718.0,76706.0,0.260734]
[1744133814667,0.12625864,76717.0,76710.0,0.260721]
[1744133814870,0.34,76718.0,76716.0,0.273736]
[1744133815146,0.34,76740.0,76726.0,0.260664]
[1744133815322,0.34,76738.0,76719.0,0.013034]
[1744133815580,0.013033,76728.0,76711.0,0.01454085]
[1744133815783,0.34,76721.0,76710.0,0.004]
[1744133816018,0.34,76721.0,76714.0,0.01454085]
[1744133816225,0.59113658,76740.0,76726.0,0.013033]
[1744133816427,0.34,76738.0,76727.0,0.013033]
[1744133816628,0.12625864,76737.0,76723.0,0.013033]
[1744133816833,0.34,76730.0,76717.0,0.260696]
[1744133817040,0.34,76730.0,76714.0,0.013035]
[1744133817041,0.34,76730.0,76720.0,0.013034]
[1744133817257,0.34,76730.0,76726.0,0.013033]
[1744133817463,0.34,76730.0,76728.0,0.260659]
[1744133817666,0.34,76730.0,76729.0,0.013032]
[1744133818461,0.34,76736.0,76732.0,0.273679]
[1744133818602,0.34,76736.0,76735.0,0.260637]
[1744133818815,0.34,76736.0,76735.0,0.013031]
[1744133819014,0.34,76736.0,76735.0,0.273668]
[1744133819442,0.34,76749.0,76735.0,0.273668]
[1744133819670,0.34,76747.0,76739.0,0.260621]
[1744133819920,0.34,76747.0,76735.0,0.013031]
[1744133819921,0.34,76745.0,76740.0,0.013031]
[1744133820057,0.00012625,76749.0,76748.0,0.260593]
[1744133820269,0.013031,76735.0,76731.0,0.01288602]
[1744133820526,0.01303,76741.0,76731.0,0.01288602]
[1744133820694,0.34,76739.0,76731.0,0.01288602]
[1744133820898,0.46625864,76739.0,76731.0,0.01288602]
[1744133821102,0.34,76733.0,76724.0,0.01454085]
[1744133821312,0.34,76737.0,76732.0,0.013032]
[1744133821509,0.34012625,76749.0,76732.0,0.01288602]
[1744133821705,0.00530708,76736.0,76735.0,0.02757185]
[1744133821906,0.00012625,76749.0,76735.0,0.02757185]
[1744133821907,0.00012625,76749.0,76748.0,0.273622]
[1744133822109,0.00012625,76749.0,76743.0,0.01288602]
[1744133822508,0.00012625,76749.0,76739.0,0.26062]
[1744133822509,0.12625864,76748.0,76737.0,0.260629]
[1744133822718,0.34,76747.0,76740.0,0.260618]
[1744133822912,0.34,76747.0,76737.0,0.273658]
[1744133822913,0.34,76747.0,76739.0,0.013031]
[1744133823154,0.34,76747.0,76745.0,0.260602]
[1744133823359,0.34,76747.0,76744.0,0.01288602]
[1744133823523,0.34,76747.0,76742.0,0.01288602]
[1744133823861,0.001,76737.0,76731.0,0.01288602]
[1744133824450,0.260613,76743.0,76731.0,0.01288602]
[1744133824658,0.46625864,76742.0,76731.0,0.01288602]
[1744133824860,0.34,76733.0,76730.0,0.01288602]
[1744133825064,0.12625864,76742.0,76730.0,0.01288602]
[1744133825273,0.34,76739.0,76730.0,0.01288602]
[1744133825507,0.46625864,76739.0,76730.0,0.01288602]
[1744133825713,0.260646,76733.0,76730.0,0.01288602]
[1744133825915,0.013032,76731.0,76720.0,0.01288602]
[1744133826125,0.013033,76724.0,76716.0,0.0451]
[1744133826339,0.0491,76763.0,76698.0,0.0473]
[1744133826340,0.013035,76711.0,76698.0,0.0473]
[1744133826535,0.34,76711.0,76699.0,0.27041037]
[1744133826743,0.613775,76705.0,76690.0,0.0001667]
[1744133826965,0.74003364,76705.0,76690.0,0.0001667]
[1744133827382,0.74003364,76705.0,76704.0,0.00075597]
[1744133827590,0.46625864,76705.0,76704.0,0.00075597]
[1744133827791,0.34,76705.0,76704.0,0.01379297]
[1744133827991,0.34,76705.0,76704.0,0.02279297]
[1744133828197,0.260667,76727.0,76704.0,0.02279297]
[1744133828198,0.34,76717.0,76704.0,0.02279297]
[1744133828396,0.38696164,76716.0,76704.0,0.00075597]
[1744133828631,0.013035,76713.0,76704.0,0.00075597]
[1744133828832,0.013032,76729.0,76710.0,0.013036]
[1744133829031,0.0549993,76759.0,76714.0,0.260705]
[1744133829032,0.12625864,76728.0,76714.0,0.260705]
[1744133829234,0.12625864,76728.0,76715.0,0.013035]
[1744133829367,0.013031,76735.0,76715.0,0.013035]
[1744133829368,0.013031,76737.0,76721.0,0.013034]
[1744133829551,0.260647,76733.0,76718.0,0.273728]
[1744133829758,0.260647,76733.0,76716.0,0.02257489]
[1744133829759,0.12625864,76732.0,76719.0,0.26069]
[1744133829957,0.12625864,76731.0,76716.0,0.013035]
[1744133830183,0.12625864,76731.0,76718.0,0.260692]
[1744133830577,0.273592,76757.0,76737.0,0.013031]
[1744133830752,0.39985364,76756.0,76736.0,0.273664]
[1744133830959,0.39985364,76756.0,76732.0,0.01454085]
[1744133830960,0.12625864,76756.0,76743.0,0.01454085]
[1744133831094,0.0003356,76767.0,76727.0,0.048]
[1744133831095,0.0003356,76767.0,76754.0,0.260571]
[1744133831296,0.12625864,76763.0,76754.0,0.013028]
[1744133831552,0.0003356,76767.0,76757.0,0.26056]
[1744133831753,0.0003356,76767.0,76761.0,0.273572]
[1744133831965,0.0004619,76764.0,76763.0,0.013027]
[1744133832330,0.0004619,76764.0,76763.0,0.03017307]
[1744133832493,0.0004619,76764.0,76763.0,0.02756785]
[1744133833535,0.0004619,76764.0,76763.0,0.03017296]
[1744133833934,0.0003356,76767.0,76766.0,0.273558]
[1744133834136,0.0003356,76767.0,76766.0,0.93435749]
[1744133834343,0.0003356,76767.0,76766.0,0.27454085]
[1744133834552,0.0003356,76767.0,76766.0,0.02756685]
[1744133834976,0.0003356,76767.0,76766.0,0.01454085]
[1744133835228,0.0003356,76767.0,76766.0,0.03656685]
[1744133835367,0.0003356,76767.0,76766.0,0.009]
[1744133835550,0.13962024,76767.0,76766.0,0.009]
[1744133835752,0.12659424,76767.0,76766.0,0.009]
[1744133835952,0.0003356,76767.0,76766.0,0.022026]
[1744133836346,0.0003356,76767.0,76766.0,0.013026]
[1744133836551,0.0003356,76767.0,76766.0,0.017026]
[1744133837176,0.0003356,76767.0,76766.0,0.273558]
[1744133837376,0.0003356,76767.0,76766.0,0.29009885]
[1744133837919,0.0003356,76767.0,76766.0,0.015026]
[1744133838071,0.0003356,76767.0,76766.0,0.02756685]
[1744133838445,0.0003356,76767.0,76766.0,0.030172]
[1744133838640,0.0003356,76767.0,76766.0,0.03017187]
[1744133838987,0.0003356,76767.0,76766.0,0.02756685]
[1744133839427,0.0003356,76767.0,76766.0,0.03256685]
[1744133839821,0.0003356,76767.0,76766.0,0.03517182]